Cogmind - Beta 17 @@@ ROGUE MODE // 2026.07.29 @ 01:59:02 Player: Momo Result: Destroyed by G-34 Mercenary with Small Laser Performance ------------- Evolutions (0) 0 Regions Visited (1) 200 Robots Destroyed (17) 85 Value Destroyed (430) 430 Prototype IDs (1) 20 Alien Tech Used (0) 0 Bonus (5450) 5450 TOTAL SCORE: 6185 Bonus ------- Prayed to X0-1V1 5000 Major X0-1V1 Interference 450 Cogmind --------- Core Integrity 0/250 Matter 295/300 Energy 97/100 System Corruption 0% Temperature Cool (30) Movement Rolling (140) Ox4 Location -10/Materials Parts ------- > --- POWER (1) -------- (None) > --- PROPULSION (2) --- Wheel Wheel > --- UTILITY (2) ------ Huge Storage Unit X0-1V1's Piety Tracker > --- WEAPON (2) ------- Small Laser > --- INVENTORY (25) --- Light Nuclear Core Large Matter Pod (23) Terrain Scanner Core Shielding Propulsion Shielding Light Armor Plating Small Laser Small Laser Mining Laser Peak State ------------ > --- POWER ------------ Light Nuclear Core > --- PROPULSION ------- Wheel Wheel > --- UTILITY ---------- Huge Storage Unit X0-1V1's Piety Tracker > --- WEAPON ----------- Small Laser > --- INVENTORY -------- Light Nuclear Core Large Matter Pod Terrain Scanner Core Shielding Propulsion Shielding Light Armor Plating Small Laser Small Laser Mining Laser [Rating: 21] Favorites ----------- Power Light Nuclear Core Power Core Light Nuclear Core Propulsion Compact Wheel Wheel Compact Wheel Utility Light Armor Plating Device Terrain Scanner Storage Huge Storage Unit Protection Light Armor Plating Weapon Assault Rifle Energy Gun Particle Gun Ballistic Gun Assault Rifle Launcher Grenade Launcher Build | -11 -10 ------- Run | Yrd Mat Slots Evolved . | . . Power . | . . Propulsion . | . . Utility . | . . Weapon . | . . Parts Attached 16 | 5 11 Power 1 | . 1 Engine . | . . Core 1 | . 1 Reactor . | . . Propulsion 4 | 2 2 Treads . | . . Leg . | . . Wheel 4 | 2 2 Hover . | . . Flight . | . . Utility 5 | . 5 Device 2 | . 2 Storage 1 | . 1 Processor . | . . Hackware . | . . Protection 2 | . 2 Artifact . | . . Weapon 6 | 3 3 Energy Gun 4 | 2 2 Energy Cannon . | . . Ballistic Gun 1 | 1 . Ballistic Cannon . | . . Launcher 1 | . 1 Special Weapon . | . . Impact Weapon . | . . Slashing Weapon . | . . Piercing Weapon . | . . Special Melee Weapon . | . . Unidentified Prototypes 1 | . 1 Parts Lost 6 | . 6 Power 1 | . 1 Propulsion 2 | . 2 Utility . | . . Weapon 3 | . 3 Highest Loss Streak 4 | . 4 To Critical Strikes . | . . Average Backups 5 | . 5 Power 1 | . 1 Propulsion . | . . Utility 2 | . 3 Weapon 1 | . 1 Tool/Special . | . . Unused Backups 8 | . 8 Power 2 | . 2 Propulsion . | . . Utility 3 | . 3 Weapon 3 | . 3 Tool/Special . | . . Average Slot Usage (%) 72 | . 72 Core 7 | . 7 Wheel 23 | . 23 Device 7 | . 7 Storage 6 | . 6 Protection 7 | . 7 Energy Gun 9 | . 9 Ballistic Gun 5 | . 5 Launcher 3 | . 3 Peak Build Rating 21 | 3 21 Average Rating 7 | 2 7 On Entrance 1 | . 3 Avg Prop Armor Cover (%) 13 | 14 13 Naked Turns . | . . Heaviest Build 93 | 2 93 Greatest Support 32 | 16 32 Greatest Overweight (x) 9 | . 9 Average Overweight (x) 1 | . 1 Largest Inventory Capacity 25 | 5 25 Average Capacity 14 | 5 15 Most Carried 9 | . 9 Average Carried 5 | . 5 Final Capacity 25 | 5 25 Final Carried 9 | . 9 Class Distribution -------------------- 100% | Mutant Dominant Class ---------------- Mutant | -10/Materials Resources | -11 -10 ----------- Run | Yrd Mat Matter Collected 500 | 227 273 Remotely . | . . Salvage Created 627 | . 627 Parts 39 | . 39 Haulers Intercepted 1 | . 1 Recyclers Shooed 2 | 1 1 Parts Field Recycled . | . . Retrieved Matter . | . . Parts Self-Destructed . | . . Prevented . | . . Parts Restored . | . . Kills | -11 -10 ------- Run | Yrd Mat Combat Hostiles Destroyed 10 | . 10 Guns 8 | . 8 AOE 2 | . 2 Classes Destroyed 6 | . 6 Worker 1 | . 1 Builder 2 | . 2 Hauler 1 | . 1 Recycler 2 | . 2 Watcher 1 | . 1 Grunt 10 | . 10 Best Kill Streak 9 | . 9 Combat Bots Only 4 | . 4 Max Kills in Single Turn 2 | . 2 Gunslinging . | . . Exploded 1 | . 1 Melee . | . . Uniques/NPCs Destroyed . | . . Combat | -11 -10 -------- Run | Yrd Mat Hostile Shots Fired 69 | . 69 Missed 12 | . 12 Hits 57 | . 57 Projectile 57 | . 57 Critical Strikes 2 | . 2 Damage Taken 756 | . 756 Core 257 | . 257 Absorbed by Shields . | . . Core Remaining (%) 100 | 100 . Volleys Fired 43 | 1 42 Largest 2 | 1 2 Hottest 105 | 20 105 Shots Fired 64 | 1 63 Gun 61 | 1 60 Cannon . | . . Launcher 3 | . 3 Special . | . . Kinetic 23 | 1 22 Thermal 38 | . 38 Explosive 3 | . 3 Electromagnetic . | . . Robot Hit Streak 8 | 1 8 Robot Miss Streak 1 | . 1 Penetration Max . | . . Secondary Targets 2 | . 2 Max Gunslinging Chain 1 | . 1 Shots Hit Robots 49 | 1 48 Core Hits 30 | . 30 Critical Kills . | . . Critical Parts Destroyed . | . . Critical Strikes . | . . Melee Attacks . | . . Impact . | . . Slashing . | . . Piercing . | . . Sneak Attacks . | . . Combat Hostiles . | . . Follow-up Attacks . | . . Damage Inflicted 869 | 14 855 Guns 626 | 14 612 Cannons . | . . Explosions 243 | . 243 Melee . | . . Ramming . | . . Kinetic 212 | 14 198 Thermal 414 | . 414 Explosive 149 | . 149 Electromagnetic 94 | . 94 Impact . | . . Slashing . | . . Piercing . | . . Highest Corruption . | . . Average Corruption . | . . Corruption Purged . | . . Corruption Blocked . | . . Overload Shots . | . . Overflow Damage 11 | . 11 Projectiles . | . . Explosions 11 | . 11 Melee . | . . Knockbacks . | . . Impact . | . . Kinetic . | . . Secondary . | . . Self-Inflicted Damage 57 | . 57 Shots 2 | . 2 Rammed . | . . Targets Rammed . | . . Kicked . | . . Crushed . | . . Highest Temperature 550 | . 550 Average Temperature 158 | . 158 Received Heat Transfer 399 | . 399 Effects 12 | . 12 Shutdowns 3 | . 3 Energy Bleed 2 | . 2 Interference 2 | . 2 Matter Decay 1 | . 1 Damage (minor) 1 | . 1 Damage (major) 2 | . 2 Damage (core) 1 | . 1 Siege Activations . | . . Martial Activations . | . . Shielding Activations . | . . Robots Disrupted . | . . Combat Hostiles . | . . Robots Corrupted . | . . Combat Hostiles . | . . Parts Fried . | . . Impact Corruptions . | . . Robots Melted . | . . Combat Hostiles . | . . Parts Melted 1 | . 1 Heat Transferred 991 | . 991 Parts Sabotaged . | . . Parts Stolen . | . . Parts Stripped . | . . Power Chain Reactions . | . . Alert | -11 -10 ------- Run | Yrd Mat Maximum Alert Level . | . . Low Security (%) 100 | 100 100 Level 1 . | . . Level 2 . | . . Level 3 . | . . Level 4 . | . . Level 5 . | . . High Security . | . . Max Security . | . . Peak Influence 147 | . 147 Initial . | . . Average 61 | . 65 Influence Increases 325 | . 325 Destroy 0b10 Robot/C 200 | . 200 Destroy 0b10 Robot/NC 35 | . 35 Destroy Leader 44 | . 44 Successful Hack 11 | . 11 Disable Machine 15 | . 15 Destroy Structure 20 | . 20 Influence Decreases 282 | . 282 Time Decay 222 | . 222 Lost Part 60 | . 60 Squads Dispatched 1 | . 1 Investigation . | . . Extermination . | . . Reinforcement 1 | . 1 Assault . | . . Garrison . | . . Intercept . | . . Searches Triggered . | . . Construction Impeded . | . . Haulers Reinforced . | . . Active Scanning Responses . | . . Cargo Convoy Interrupts . | . . Stealth | -11 -10 --------- Run | Yrd Mat Distress Signals 1 | . 1 Communications Jammed . | . . Distress Signals . | . . Times Spotted 19 | . 19 Peak Tracking Total 4 | . 4 Tactical Retreats . | . . Traps | -11 -10 ------- Run | Yrd Mat Traps Triggered . | . . Indirectly . | . . Trap Hack Attempts . | . . Triggered . | . . Disarmed . | . . Reprogrammed . | . . Reused . | . . Traps Extracted . | . . Installed . | . . Triggered . | . . Machines | -11 -10 ---------- Run | Yrd Mat Machines Disabled 1 | . 1 Max in Single Turn 1 | . 1 Machines Repaired . | . . Machines Dismantled . | . . Machines Sabotaged . | . . Overloaded Fab Kills . | . . Hacking | -11 -10 --------- Run | Yrd Mat Machines Accessed 2 | . 2 Terminals 2 | . 2 Fabricators . | . . Repair Stations . | . . Recycling Units . | . . Scanalyzers . | . . Garrison Access . | . . Total Hacks 6 | . 6 Successful 2 | . 2 Failed 4 | . 4 Catastrophic 1 | . 1 Database Lockouts . | . . Manual 6 | . 6 Terminals 6 | . 6 Fabricators . | . . Repair Stations . | . . Recycling Units . | . . Scanalyzers . | . . Garrison Access . | . . Terminal Hacks 2 | . 2 Robot Analysis 1 | . 1 Zone Layout 1 | . 1 Fabricator Hacks . | . . Repair Station Hacks . | . . Recycling Unit Hacks . | . . Scanalyzer . | . . Garrison Access Hacks . | . . Unauthorized Hacks . | . . Terminals . | . . Fabricators . | . . Repair Stations . | . . Recycling Units . | . . Scanalyzers . | . . Garrison Access . | . . Data Cores Recovered . | . . Used . | . . Hacking Detections 2 | . 2 Full Trace Events . | . . Feedback Events . | . . Feedback Blocked . | . . Robot Schematics Acquired . | . . Robots Built . | . . Authchips . | . . Time . | . . Total Robot Build Rating . | . . Part Schematics Acquired . | . . Parts Built . | . . Authchips . | . . Time . | . . Total Part Build Rating . | . . Part Studies Acquired . | . . Parts Repaired . | . . Time . | . . Parts Recycled . | . . Recycled Matter . | . . Retrieved Matter . | . . Retrieved Components . | . . Parts Scanalyzed . | . . Part Schematics Acquired . | . . Parts Damaged . | . . Bothacking | -11 -10 ------------ Run | Yrd Mat Used RIF Installer . | . . Robots Hacked . | . . Non-combat . | . . Combat . | . . Robot Hacks Applied . | . . Relay Couplers Released . | . . Fabnet Peak Effective % . | . . Robots Rewired . | . . Allies Hacked . | . . Hacks Repelled . | . . Allies | -11 -10 -------- Run | Yrd Mat Total Allies . | . . Largest Group . | . . Highest-Rated Group . | . . Highest-Rated Ally . | . . Total Orders . | . . Ally Attacks . | . . Total Damage . | . . Kills . | . . Allies Corrupted . | . . Allies Melted . | . . X0-1V1 Amusement Gains 9 | . 9 Bad Acts 2 | . 2 Intel | -11 -10 ------- Run | Yrd Mat Active Infowar (turns) 317 | . 317 Terrain 317 | . 317 Robot Analysis Total 1 | . 1 Derelict Logs Recovered . | . . Drone Launches . | . . Drone Recoveries . | . . Exploration | -11 -10 ------------- Run | Yrd Mat Turns Passed 704 | 43 661 Spaces Moved 466 | 52 414 Core 72 | 39 33 Treads . | . . Legs . | . . Wheels 394 | 13 381 Hover . | . . Flight . | . . Fastest Speed 50 | 50 50 Average Speed 111 | 62 117 Slowest Speed 215 | 100 215 Overloaded Moves . | . . Propulsion Burnouts . | . . Robots Hopped . | . . Potential Cave-ins . | . . Cave-ins Triggered . | . . Exploration Rate (%) 37 | 3 72 Regions Visited 1 Branch Regions . Pre-discovered Areas . | . . Known Exits Taken . | . . Unknown Exits Taken 1 | 1 . Scrap Searched . | . . Spaces Dug . | . . Terrain Destroyed 23 | . 23 Melee . | . . Projectile . | . . AOE 23 | . 23 Terrain Rammed . | . . Walls Destroyed . | . . Machines Disabled . | . . Actions | -11 -10 --------- Run | Yrd Mat Total 583 | 59 524 Wait 39 | . 39 Move 465 | 51 414 Hop . | . . Pick Up 12 | . 12 Fast Attach 13 | 5 8 Attach 4 | . 4 Detach 2 | . 2 Swap . | . . Drop 5 | 2 3 Fire 43 | 1 42 Melee . | . . Ram . | . . Kick . | . . Crush . | . . Escape Stasis . | . . Rewire . | . . Trap . | . . Miscellaneous . | . . Route ------- -11/Scrapyard -10/Materials (discovered 3 exits: [*Mat] / [*Min] / [*Sub]) History --------- Turn | Location | Event 4 | -11/Scrapyard | Discovered new exit (range 16) 44 | -11/Scrapyard | Entered Materials 170 | -10/Materials | Discovered new exit (range 15) 312 | -10/Materials | Build established: Mutant 393 | -10/Materials | Discovered new exit (range 9) 501 | -10/Materials | Core integrity fell below 50% 524 | -10/Materials | Core integrity fell below 20% 559 | -10/Materials | Lost 4 parts (2n2w) 649 | -10/Materials | Discovered new exit (range 5) 677 | -10/Materials | Prayed at D.C.S.S. Altar Unit 695 | -10/Materials | X0-1V1 sent hostile G-34 Mercenary (x3) 705 | -10/Materials | Destroyed by G-34 Mercenary with Small Laser Last Messages --------------- 00683_ T-07 Excavator is excavating. 00689_ Acquired Wheel. 00691_ T-07 Excavator is excavating. 00695_ X0-1V1: "C'mon, do something!" G-34 Mercenary form resolidifies at new position. 00699_ Lgt. Nuclear Core destroyed. 00703_ X0-1V1: "The ol' switcheroo!" G-34 Mercenary form resolidifies at new position. U-05 Engineer form resolidifies at new position. Form resolidifies at new position. R-06 Scavenger form resolidifies at new position. T-07 Excavator form resolidifies at new position. 00704_ Heat Sink melted. 00704_ G-34 Mercenary destroyed. 00704_ R-06 Scavenger collects Corrupted Wheel. 00705_ X0-1V1 howls with laughter! Map ----- +----------------------------------------------------+ | | | | | | | | | | | | | | | | | | | | | | | | | | | | | | | | | | | ???????????????#####???????????????????????? | | ?????????????###<#X#???????????????????????? | | ?????????????# ! ##??????????????????????? | | ?????????????# |g!#??????????????????????? | | ?????????????# #??????????????????????? | | ?????????????#####r###########+????????????? | | ?????????????????# u r +????????? | | ?????????????????# t ###???????????????? | | ?????????????????# @!!* #?????????????????? | | ?????????????????# !!%= #?????????????????? | | ??????#####??????# !!= #?????????????????? | | ?????##"""##?????# #?????????????????? | | ????##"|| "##????# #?????????????????? | | ????#"" ""############ #?????????? ??????? | | ????# ## #??# #?????????????????? | | ????# < ## !!!#??# #?????????????????? | | ????# ## !!!#??# #?????????????????? | | ????# ## !! #??# ##########????????? | | ????## ### #??# # ## ?????? | | ?????## ##?# #??# # """ ## ????? | | ??????# #######+###### # * """ ## #???? | | ??????# *[ # ! """ ## #???? | | ??????# [ + ! ## #???? | | ??????# * ! # ! """ ## ###?? | | ??#######+## """ """ # """ # #??? | | ??# %[# """ """ # """ # #??? | | ??# !*#% """ """ #! ^ # " #??? | | ??# * / ########## !#??? | | ??# """ # ## ## #??? | | ??# """""### #####+#### T ### ##??? | | ??# """""#?# #?# # ### #?#? | | ??# """""#?# #?# # ## ##??? | | ??# """ #?# #?#" """ ###+#### # #??? | +----------------------------------------------------+ Best States ------------- Heat Dissipation 25 Energy Generation 14 Energy Capacity 160 Matter Stores 300 Matter Capacity 300 Sight Range 16 Terrain Scan Range 14 Terrain Scan Density 10 Armor Coverage 150 Propulsion Shielding 33 Evasion (%) 50 Item Schematics ----------------- None Robot Schematics ------------------ None Fabricated ------------ Nothing Repaired ---------- Nothing Studied --------- None Alien Tech Used ----------------- None Achievements -------------- None Challenges ------------ None Game ------ Seed WarpSuperdenseBoomstick Manual? 0 Play Time 00:07:44 Cumulative 474.9 hours Start 2026.07.29 @ 01:53:25 End 2026.07.29 @ 01:59:02 Sessions 1 Manual Loads 0 Difficulty Rogue Special Mode None Game No. 247 Rogue 243 Adventurer 0 Explorer 4 Win Type - Total 26 Types 9/1/2/6/1/2/3/1/1/0 Lore% 69 Gallery% 74 Achievement% 57 Wizard Run 0 Options --------- Layout 1 ASCII 0 Keyboard 0 Movement Mouse Keybinds 0 Fullscreen 1 Font 24/Smallcaps Map View 50x35 Zoom Use 0% Tactical HUD 1 Map Filters NONE Filters NONE Steam 1 RUN: 92cd7c87-eca9-4f42-a322-71c03e8d603c